[Event "*** Titled Tuesday Blitz"]
[Site "Chess.com"]
[Date "2021.03.02"]
[Round "6"]
[White "Darius321"]
[Black "Galileo22"]
[Result "0-1"]
[WhiteElo "2297"]
[BlackElo "2433"]
[TimeControl "180+1"]
[EndTime "11:06:53 PST"]
[Termination "Galileo22 won on time"]

1. e4 {[%clk 0:03:00.9]} 1... g6 {[%clk 0:03:00.2]} 2. h4 {[%clk 0:03:00.3]}
2... Bg7 {[%clk 0:02:53.3]} 3. h5 {[%clk 0:02:59.8]} 3... d6 {[%clk 0:02:51.5]}
4. d4 {[%clk 0:02:58.8]} 4... Nc6 {[%clk 0:02:47.8]} 5. Be3 {[%clk 0:02:56.3]}
5... e5 {[%clk 0:02:40.6]} 6. h6 {[%clk 0:02:49.5]} 6... Bf6 {[%clk 0:02:35.3]}
7. d5 {[%clk 0:02:38.1]} 7... Nb8 {[%clk 0:02:29.9]} 8. Nc3 {[%clk 0:02:29.6]}
8... Be7 {[%clk 0:02:23.2]} 9. Qd2 {[%clk 0:02:15]} 9... Nf6 {[%clk 0:02:15.5]}
10. f3 {[%clk 0:02:14.7]} 10... a6 {[%clk 0:02:03.7]} 11. O-O-O {[%clk
0:02:12.4]} 11... b5 {[%clk 0:01:58.7]} 12. g4 {[%clk 0:02:07.8]} 12... b4
{[%clk 0:01:49.5]} 13. Nce2 {[%clk 0:02:03.1]} 13... a5 {[%clk 0:01:48.2]} 14.
g5 {[%clk 0:02:03.2]} 14... Nfd7 {[%clk 0:01:47.6]} 15. f4 {[%clk 0:02:00.2]}
15... exf4 {[%clk 0:01:44.2]} 16. Bxf4 {[%clk 0:01:52.4]} 16... O-O {[%clk
0:01:33.6]} 17. Nf3 {[%clk 0:01:46.5]} 17... f6 {[%clk 0:01:26.2]} 18. Ned4
{[%clk 0:01:35.7]} 18... Nc5 {[%clk 0:01:11.4]} 19. Bd3 {[%clk 0:01:20.8]} 19...
a4 {[%clk 0:01:02.9]} 20. Qxb4 {[%clk 0:01:03.6]} 20... fxg5 {[%clk 0:00:57]}
21. Be3 {[%clk 0:00:59]} 21... g4 {[%clk 0:00:53.1]} 22. Nd2 {[%clk 0:00:49.6]}
22... Bf6 {[%clk 0:00:39.4]} 23. Rhg1 {[%clk 0:00:22.3]} 23... Nbd7 {[%clk
0:00:33.1]} 24. Ne6 {[%clk 0:00:20.9]} 24... Nxe6 {[%clk 0:00:31.8]} 25. dxe6
{[%clk 0:00:19.9]} 25... Ne5 {[%clk 0:00:32.4]} 26. Nc4 {[%clk 0:00:14.2]} 26...
Qe7 {[%clk 0:00:22.9]} 27. Nxe5 {[%clk 0:00:13.5]} 27... Bxe5 {[%clk 0:00:22.4]}
28. Rxg4 {[%clk 0:00:12.9]} 28... Bxe6 {[%clk 0:00:22.4]} 29. Bc4 {[%clk
0:00:12.6]} 29... Rfb8 {[%clk 0:00:20.7]} 30. Bxe6+ {[%clk 0:00:10]} 30... Qxe6
{[%clk 0:00:21.6]} 0-1

[Event "*** Titled Tuesday Blitz"]
[Site "Chess.com"]
[Date "2021.03.02"]
[Round "6"]
[White "Thjop"]
[Black "rpragchess"]
[Result "0-1"]
[WhiteElo "2668"]
[BlackElo "2866"]
[TimeControl "180+1"]
[EndTime "11:06:54 PST"]
[Termination "rpragchess won by resignation"]

1. e4 {[%clk 0:03:00.9]} 1... c5 {[%clk 0:02:59.1]} 2. Nf3 {[%clk 0:03:00.5]}
2... e6 {[%clk 0:02:59.5]} 3. d3 {[%clk 0:03:00.3]} 3... Nc6 {[%clk 0:02:58.3]}
4. g3 {[%clk 0:03:00.5]} 4... g6 {[%clk 0:02:53.1]} 5. Bg2 {[%clk 0:03:00.7]}
5... Bg7 {[%clk 0:02:53.6]} 6. O-O {[%clk 0:03:01.3]} 6... Nge7 {[%clk
0:02:54.4]} 7. c3 {[%clk 0:03:00.5]} 7... e5 {[%clk 0:02:54.4]} 8. a3 {[%clk
0:02:56.9]} 8... d6 {[%clk 0:02:53.9]} 9. b4 {[%clk 0:02:56.7]} 9... a6 {[%clk
0:02:54.2]} 10. Be3 {[%clk 0:02:56]} 10... b6 {[%clk 0:02:51.7]} 11. d4 {[%clk
0:02:31.9]} 11... exd4 {[%clk 0:02:48.7]} 12. cxd4 {[%clk 0:02:31.8]} 12... Bg4
{[%clk 0:02:46.7]} 13. Nbd2 {[%clk 0:02:05.7]} 13... cxd4 {[%clk 0:02:37.1]} 14.
Bf4 {[%clk 0:02:03.8]} 14... O-O {[%clk 0:02:36.7]} 15. h3 {[%clk 0:02:00.9]}
15... Bxf3 {[%clk 0:02:14.7]} 16. Nxf3 {[%clk 0:01:55]} 16... Re8 {[%clk
0:02:13.1]} 17. Re1 {[%clk 0:01:44.8]} 17... Rc8 {[%clk 0:02:10.9]} 18. Rc1
{[%clk 0:01:42.1]} 18... Ne5 {[%clk 0:01:48.1]} 19. Nxd4 {[%clk 0:01:26]} 19...
Rxc1 {[%clk 0:01:41.2]} 20. Bxc1 {[%clk 0:01:26.9]} 20... Qc8 {[%clk 0:01:39.6]}
21. f4 {[%clk 0:01:04.5]} 21... Nc4 {[%clk 0:01:27.6]} 22. Nc2 {[%clk
0:00:57.4]} 22... Nc6 {[%clk 0:01:23.3]} 23. Ne3 {[%clk 0:00:44.7]} 23... Nd4
{[%clk 0:01:20.2]} 24. Qd3 {[%clk 0:00:39.2]} 24... b5 {[%clk 0:01:18.3]} 25.
Nd5 {[%clk 0:00:27.9]} 25... f5 {[%clk 0:01:11.9]} 26. Ne3 {[%clk 0:00:20.5]}
26... fxe4 {[%clk 0:00:43.2]} 27. Bxe4 {[%clk 0:00:21.4]} 27... Qxh3 {[%clk
0:00:37.3]} 28. Nxc4 {[%clk 0:00:19.7]} 28... bxc4 {[%clk 0:00:37.4]} 29. Bd5+
{[%clk 0:00:10.9]} 29... Kf8 {[%clk 0:00:37.3]} 30. Rxe8+ {[%clk 0:00:11]} 30...
Kxe8 {[%clk 0:00:38.2]} 31. Bxc4 {[%clk 0:00:10.4]} 31... Kf8 {[%clk 0:00:23]}
32. Qe3 {[%clk 0:00:08]} 32... Nf5 {[%clk 0:00:21.4]} 33. Qf3 {[%clk 0:00:06.9]}
33... Bd4+ {[%clk 0:00:21.6]} 0-1

[Event "*** Titled Tuesday Blitz"]
[Site "Chess.com"]
[Date "2021.03.02"]
[Round "6"]
[White "CSB7"]
[Black "nrvisakh"]
[Result "1/2-1/2"]
[WhiteElo "2590"]
[BlackElo "2791"]
[TimeControl "180+1"]
[EndTime "11:06:57 PST"]
[Termination "Game drawn by stalemate"]

1. e4 {[%clk 0:03:00.9]} 1... e5 {[%clk 0:02:54.5]} 2. Nf3 {[%clk 0:03:00.2]}
2... Nc6 {[%clk 0:02:52.8]} 3. Bb5 {[%clk 0:02:55.3]} 3... Nf6 {[%clk
0:02:52.7]} 4. O-O {[%clk 0:02:51.9]} 4... Nxe4 {[%clk 0:02:52.8]} 5. d4 {[%clk
0:02:37.6]} 5... Nd6 {[%clk 0:02:52.2]} 6. Bxc6 {[%clk 0:02:38]} 6... dxc6
{[%clk 0:02:53.1]} 7. dxe5 {[%clk 0:02:38.6]} 7... Nf5 {[%clk 0:02:53.3]} 8.
Qxd8+ {[%clk 0:02:39.1]} 8... Kxd8 {[%clk 0:02:54.2]} 9. h3 {[%clk 0:02:39.6]}
9... h5 {[%clk 0:02:51.9]} 10. Nc3 {[%clk 0:02:38.4]} 10... Be6 {[%clk 0:02:51]}
11. Bf4 {[%clk 0:02:33.5]} 11... b6 {[%clk 0:02:49.4]} 12. Ng5 {[%clk
0:02:23.9]} 12... Rh6 {[%clk 0:02:48]} 13. Rad1+ {[%clk 0:02:17]} 13... Ke8
{[%clk 0:02:44.3]} 14. Nxe6 {[%clk 0:02:11.1]} 14... Rxe6 {[%clk 0:02:43.5]} 15.
Ne4 {[%clk 0:01:55.4]} 15... Be7 {[%clk 0:02:38.5]} 16. g4 {[%clk 0:01:46.9]}
16... hxg4 {[%clk 0:02:37.8]} 17. hxg4 {[%clk 0:01:47.8]} 17... Nh4 {[%clk
0:02:33.7]} 18. f3 {[%clk 0:01:41.7]} 18... f6 {[%clk 0:02:33.7]} 19. exf6
{[%clk 0:01:35.5]} 19... gxf6 {[%clk 0:02:33.5]} 20. Kf2 {[%clk 0:01:23.1]}
20... f5 {[%clk 0:02:21.5]} 21. gxf5 {[%clk 0:00:45.8]} 21... Nxf5 {[%clk
0:02:22.4]} 22. Bxc7 {[%clk 0:00:44.5]} 22... Kf7 {[%clk 0:02:10]} 23. Rh1
{[%clk 0:00:40.1]} 23... Rg8 {[%clk 0:02:07.3]} 24. Rh7+ {[%clk 0:00:33.7]}
24... Rg7 {[%clk 0:02:07.1]} 25. Rxg7+ {[%clk 0:00:33.4]} 25... Nxg7 {[%clk
0:02:07.1]} 26. Bd6 {[%clk 0:00:21.6]} 26... Bh4+ {[%clk 0:02:02.8]} 27. Bg3
{[%clk 0:00:21.2]} 27... Bxg3+ {[%clk 0:01:54.7]} 28. Kxg3 {[%clk 0:00:20.7]}
28... Re7 {[%clk 0:01:52.1]} 29. c4 {[%clk 0:00:14.2]} 29... c5 {[%clk
0:01:49.9]} 30. Kg4 {[%clk 0:00:12.8]} 30... Ne6 {[%clk 0:01:49]} 31. Ng5+
{[%clk 0:00:11.4]} 31... Nxg5 {[%clk 0:01:48.9]} 32. Kxg5 {[%clk 0:00:12.3]}
32... Re2 {[%clk 0:01:49.1]} 33. Rd7+ {[%clk 0:00:11.4]} 33... Ke6 {[%clk
0:01:49.2]} 34. Rxa7 {[%clk 0:00:11.4]} 34... Rg2+ {[%clk 0:01:49.2]} 35. Kf4
{[%clk 0:00:10.4]} 35... Rxb2 {[%clk 0:01:49.2]} 36. Rb7 {[%clk 0:00:09.3]}
36... Rb4 {[%clk 0:01:47]} 37. Ke3 {[%clk 0:00:07.5]} 37... Kd6 {[%clk
0:01:45.3]} 38. Kd3 {[%clk 0:00:07.3]} 38... Kc6 {[%clk 0:01:44.8]} 39. Ra7
{[%clk 0:00:04.3]} 39... Rb1 {[%clk 0:01:43.2]} 40. a4 {[%clk 0:00:04.2]} 40...
Re1 {[%clk 0:01:42]} 41. a5 {[%clk 0:00:03.8]} 41... bxa5 {[%clk 0:01:41.4]} 42.
Rxa5 {[%clk 0:00:04.7]} 42... Kd6 {[%clk 0:01:40.6]} 43. Ra6+ {[%clk 0:00:04.2]}
43... Kd7 {[%clk 0:01:40.8]} 44. Rf6 {[%clk 0:00:03.5]} 44... Rd1+ {[%clk
0:01:40.8]} 45. Kc2 {[%clk 0:00:03.3]} 45... Ra1 {[%clk 0:01:37.1]} 46. Rf5
{[%clk 0:00:03.4]} 46... Ra3 {[%clk 0:01:36.9]} 47. f4 {[%clk 0:00:02.2]} 47...
Rf3 {[%clk 0:01:35.6]} 48. Rd5+ {[%clk 0:00:02]} 48... Ke6 {[%clk 0:01:33.5]}
49. f5+ {[%clk 0:00:02.9]} 49... Rxf5 {[%clk 0:01:33]} 50. Kd3 {[%clk
0:00:02.4]} 50... Rxd5+ {[%clk 0:01:30.7]} 51. cxd5+ {[%clk 0:00:03.3]} 51...
Ke5 {[%clk 0:01:31]} 52. Kc4 {[%clk 0:00:02.1]} 52... Kd6 {[%clk 0:01:31.3]} 53.
Kc3 {[%clk 0:00:02.7]} 53... Ke5 {[%clk 0:01:30.6]} 54. Kc4 {[%clk 0:00:02.7]}
54... Kd6 {[%clk 0:01:30.9]} 55. Kc3 {[%clk 0:00:02.9]} 55... Kxd5 {[%clk
0:01:31.8]} 56. Kd3 {[%clk 0:00:03.2]} 56... c4+ {[%clk 0:01:31.3]} 57. Kc3
{[%clk 0:00:03.8]} 57... Kc5 {[%clk 0:01:31.8]} 58. Kc2 {[%clk 0:00:04.3]} 58...
Kd4 {[%clk 0:01:32.7]} 59. Kd2 {[%clk 0:00:04.4]} 59... c3+ {[%clk 0:01:33.6]}
60. Kc2 {[%clk 0:00:04.8]} 60... Kc4 {[%clk 0:01:34]} 61. Kc1 {[%clk 0:00:05.3]}
61... Kb3 {[%clk 0:01:34.9]} 62. Kb1 {[%clk 0:00:05.5]} 62... c2+ {[%clk
0:01:35.3]} 63. Kc1 {[%clk 0:00:05.9]} 63... Kc3 {[%clk 0:01:35.8]} 1/2-1/2

[Event "*** Titled Tuesday Blitz"]
[Site "Chess.com"]
[Date "2021.03.02"]
[Round "6"]
[White "Skat2704"]
[Black "vugarrasulov"]
[Result "1/2-1/2"]
[WhiteElo "2577"]
[BlackElo "2791"]
[TimeControl "180+1"]
[EndTime "11:06:57 PST"]
[Termination "Game drawn - insufficient material"]

1. d4 {[%clk 0:03:00.9]} 1... d5 {[%clk 0:03:00]} 2. c4 {[%clk 0:02:57]} 2... c6
{[%clk 0:02:59.2]} 3. Nf3 {[%clk 0:02:56]} 3... Nf6 {[%clk 0:02:59.2]} 4. Nc3
{[%clk 0:02:54.9]} 4... e6 {[%clk 0:02:58.4]} 5. Bg5 {[%clk 0:02:53.6]} 5...
dxc4 {[%clk 0:02:56.6]} 6. e4 {[%clk 0:02:52.5]} 6... b5 {[%clk 0:02:56.8]} 7.
e5 {[%clk 0:02:52.5]} 7... h6 {[%clk 0:02:57.3]} 8. Bh4 {[%clk 0:02:51.2]} 8...
g5 {[%clk 0:02:57.8]} 9. exf6 {[%clk 0:02:51]} 9... gxh4 {[%clk 0:02:57.2]} 10.
Ne5 {[%clk 0:02:51.2]} 10... Qxf6 {[%clk 0:02:49.8]} 11. g3 {[%clk 0:02:51.3]}
11... Bd6 {[%clk 0:02:44.2]} 12. Qe2 {[%clk 0:02:49]} 12... Bxe5 {[%clk
0:02:26]} 13. dxe5 {[%clk 0:02:47]} 13... Qf5 {[%clk 0:02:26.5]} 14. Bg2 {[%clk
0:02:43.8]} 14... h3 {[%clk 0:02:24.2]} 15. Bf3 {[%clk 0:02:42]} 15... a6 {[%clk
0:02:10.1]} 16. O-O {[%clk 0:02:34.5]} 16... Qd3 {[%clk 0:02:10.1]} 17. Qxd3
{[%clk 0:02:30.8]} 17... cxd3 {[%clk 0:02:11]} 18. Rfd1 {[%clk 0:02:29.5]} 18...
Ke7 {[%clk 0:02:06.9]} 19. Rxd3 {[%clk 0:02:26.1]} 19... Rd8 {[%clk 0:02:07.5]}
20. Rxd8 {[%clk 0:02:18.2]} 20... Kxd8 {[%clk 0:02:08.4]} 21. Bg4 {[%clk
0:02:17.7]} 21... Nd7 {[%clk 0:02:05.6]} 22. f4 {[%clk 0:02:16.2]} 22... Ke7
{[%clk 0:01:59.9]} 23. Bxh3 {[%clk 0:02:14.7]} 23... Bb7 {[%clk 0:02:00.3]} 24.
Bg2 {[%clk 0:02:12]} 24... Nb6 {[%clk 0:02:00.4]} 25. Rd1 {[%clk 0:02:07.6]}
25... Nc4 {[%clk 0:01:59.1]} 26. b3 {[%clk 0:02:05.4]} 26... Ne3 {[%clk
0:01:59.1]} 27. Rd6 {[%clk 0:02:01.6]} 27... Nf5 {[%clk 0:01:52.1]} 28. Rd2
{[%clk 0:01:57]} 28... Rc8 {[%clk 0:01:51.4]} 29. Ne4 {[%clk 0:01:54.9]} 29...
Rc7 {[%clk 0:01:43.7]} 30. Nc5 {[%clk 0:01:52.4]} 30... Ne3 {[%clk 0:01:40.3]}
31. Bf3 {[%clk 0:01:48.7]} 31... a5 {[%clk 0:01:32.1]} 32. Nxb7 {[%clk
0:01:37.6]} 32... Rxb7 {[%clk 0:01:32]} 33. Bxc6 {[%clk 0:01:37.7]} 33... Rc7
{[%clk 0:01:32.1]} 34. Bxb5 {[%clk 0:01:36.2]} 34... h5 {[%clk 0:01:29]} 35. h4
{[%clk 0:01:30.8]} 35... Rc1+ {[%clk 0:01:25.8]} 36. Kf2 {[%clk 0:01:28.2]}
36... Ng4+ {[%clk 0:01:26.7]} 37. Kg2 {[%clk 0:01:20.7]} 37... Ra1 {[%clk
0:01:26.7]} 38. Rd7+ {[%clk 0:01:07.1]} 38... Kf8 {[%clk 0:01:26.3]} 39. Rd8+
{[%clk 0:01:07.3]} 39... Kg7 {[%clk 0:01:26.1]} 40. Rd2 {[%clk 0:01:05.5]} 40...
f6 {[%clk 0:01:22.6]} 41. exf6+ {[%clk 0:01:02.1]} 41... Kxf6 {[%clk 0:01:23.5]}
42. Be2 {[%clk 0:00:57.6]} 42... Kf5 {[%clk 0:01:16.7]} 43. Bxg4+ {[%clk
0:00:54.7]} 43... Kxg4 {[%clk 0:01:16.6]} 44. Re2 {[%clk 0:00:52.1]} 44... Rc1
{[%clk 0:01:13.9]} 45. Rxe6 {[%clk 0:00:48.3]} 45... Rc2+ {[%clk 0:01:14.2]} 46.
Kf1 {[%clk 0:00:47.2]} 46... Rxa2 {[%clk 0:01:12.2]} 47. Re3 {[%clk 0:00:44.8]}
47... Rb2 {[%clk 0:01:06.6]} 48. Ke1 {[%clk 0:00:42.3]} 48... Rg2 {[%clk
0:01:06.3]} 49. Rc3 {[%clk 0:00:40.1]} 49... Rb2 {[%clk 0:01:05.3]} 50. Kd1
{[%clk 0:00:40]} 50... Rf2 {[%clk 0:01:04.6]} 51. Kc1 {[%clk 0:00:35.4]} 51...
Re2 {[%clk 0:01:04.8]} 52. Rc5 {[%clk 0:00:33.3]} 52... Re3 {[%clk 0:01:03.5]}
53. Rg5+ {[%clk 0:00:31.6]} 53... Kf3 {[%clk 0:01:03.3]} 54. Rxh5 {[%clk
0:00:31.4]} 54... Rxb3 {[%clk 0:01:02.3]} 55. Rxa5 {[%clk 0:00:31.4]} 55... Kxg3
{[%clk 0:01:02.4]} 56. f5 {[%clk 0:00:31.3]} 56... Kxh4 {[%clk 0:01:02.5]} 57.
f6 {[%clk 0:00:31.4]} 57... Rf3 {[%clk 0:01:02.9]} 58. Ra6 {[%clk 0:00:30.9]}
58... Kg5 {[%clk 0:01:03.5]} 59. Kd2 {[%clk 0:00:31.4]} 59... Rxf6 {[%clk
0:01:03.9]} 60. Rxf6 {[%clk 0:00:31.4]} 60... Kxf6 {[%clk 0:01:04.8]} 1/2-1/2

[Event "*** Titled Tuesday Blitz"]
[Site "Chess.com"]
[Date "2021.03.02"]
[Round "6"]
[White "Caracternin123"]
[Black "guillembaches"]
[Result "1-0"]
[WhiteElo "2616"]
[BlackElo "2472"]
[TimeControl "180+1"]
[EndTime "11:06:57 PST"]
[Termination "Caracternin123 won on time"]

1. d4 {[%clk 0:03:00.9]} 1... Nf6 {[%clk 0:02:59.6]} 2. Nf3 {[%clk 0:03:01.2]}
2... e6 {[%clk 0:02:59.9]} 3. g3 {[%clk 0:03:01.6]} 3... c5 {[%clk 0:02:53.7]}
4. Bg2 {[%clk 0:03:02.5]} 4... cxd4 {[%clk 0:02:53.3]} 5. O-O {[%clk 0:03:02.2]}
5... a6 {[%clk 0:02:49.3]} 6. Nxd4 {[%clk 0:02:58]} 6... Qc7 {[%clk 0:02:49.4]}
7. b3 {[%clk 0:02:56.5]} 7... Be7 {[%clk 0:02:48.8]} 8. c4 {[%clk 0:02:56.6]}
8... O-O {[%clk 0:02:48.3]} 9. Bb2 {[%clk 0:02:56]} 9... d6 {[%clk 0:02:48]} 10.
Nc3 {[%clk 0:02:56.3]} 10... Nbd7 {[%clk 0:02:45]} 11. Rc1 {[%clk 0:02:56.3]}
11... Rb8 {[%clk 0:02:41.7]} 12. Qd2 {[%clk 0:02:54.7]} 12... Ne5 {[%clk
0:02:37.8]} 13. Rfd1 {[%clk 0:02:53.4]} 13... Rd8 {[%clk 0:02:36.9]} 14. f4
{[%clk 0:02:50.9]} 14... Ned7 {[%clk 0:02:27.3]} 15. h3 {[%clk 0:02:33.5]} 15...
Re8 {[%clk 0:02:21.5]} 16. e3 {[%clk 0:02:31.3]} 16... Bf8 {[%clk 0:02:17.9]}
17. Ba3 {[%clk 0:02:29.1]} 17... g6 {[%clk 0:02:06.4]} 18. Nde2 {[%clk
0:02:24.7]} 18... Nc5 {[%clk 0:02:02.1]} 19. g4 {[%clk 0:01:58.1]} 19... b6
{[%clk 0:01:42.3]} 20. g5 {[%clk 0:01:55.4]} 20... Nh5 {[%clk 0:01:36.8]} 21. b4
{[%clk 0:01:55.5]} 21... Nd7 {[%clk 0:01:35.5]} 22. Ne4 {[%clk 0:01:55.4]} 22...
Bb7 {[%clk 0:01:29.4]} 23. Nxd6 {[%clk 0:01:53.5]} 23... Bxg2 {[%clk 0:01:22]}
24. Nxe8 {[%clk 0:01:47]} 24... Qb7 {[%clk 0:01:14.9]} 25. Ng3 {[%clk
0:00:59.1]} 25... Bxh3 {[%clk 0:00:55.1]} 26. Nxh5 {[%clk 0:00:56.7]} 26... Rxe8
{[%clk 0:00:55.1]} 27. Kh2 {[%clk 0:00:51.2]} 27... Bf5 {[%clk 0:00:36.8]} 28.
Qg2 {[%clk 0:00:20.2]} 28... Be4 {[%clk 0:00:29.1]} 29. Rxd7 {[%clk 0:00:17]}
29... Qa8 {[%clk 0:00:09.9]} 30. Nf6+ {[%clk 0:00:15.6]} 30... Kh8 {[%clk
0:00:09.4]} 31. Qxe4 {[%clk 0:00:15.8]} 1-0

[Event "*** Titled Tuesday Blitz"]
[Site "Chess.com"]
[Date "2021.03.02"]
[Round "6"]
[White "LuisFSiles"]
[Black "JQuiroga18"]
[Result "1-0"]
[WhiteElo "2319"]
[BlackElo "2424"]
[TimeControl "180+1"]
[EndTime "11:06:57 PST"]
[Termination "LuisFSiles won by resignation"]

1. e4 {[%clk 0:03:00.9]} 1... e5 {[%clk 0:02:54.8]} 2. Nf3 {[%clk 0:02:59.7]}
2... Nc6 {[%clk 0:02:53.5]} 3. Bc4 {[%clk 0:02:58.9]} 3... Nf6 {[%clk
0:02:48.2]} 4. d4 {[%clk 0:02:54.6]} 4... exd4 {[%clk 0:02:43.2]} 5. O-O {[%clk
0:02:53]} 5... d6 {[%clk 0:02:39.8]} 6. Nxd4 {[%clk 0:02:37.4]} 6... Be7 {[%clk
0:02:39.5]} 7. Nc3 {[%clk 0:02:30.9]} 7... O-O {[%clk 0:02:39]} 8. Re1 {[%clk
0:02:29.2]} 8... Nxd4 {[%clk 0:02:13.6]} 9. Qxd4 {[%clk 0:02:27.4]} 9... Be6
{[%clk 0:02:13.6]} 10. Bxe6 {[%clk 0:02:19.1]} 10... fxe6 {[%clk 0:02:14.5]} 11.
e5 {[%clk 0:02:16.5]} 11... c5 {[%clk 0:01:28.6]} 12. Qc4 {[%clk 0:01:21.6]}
12... d5 {[%clk 0:01:27]} 13. Qe2 {[%clk 0:01:20.8]} 13... Nd7 {[%clk
0:01:25.2]} 14. Qg4 {[%clk 0:01:14.4]} 14... Qb6 {[%clk 0:01:13.2]} 15. Nxd5
{[%clk 0:01:10]} 15... exd5 {[%clk 0:01:01.8]} 16. Qxd7 {[%clk 0:01:08.8]} 16...
Qd8 {[%clk 0:00:49]} 17. Qe6+ {[%clk 0:00:56.4]} 17... Kh8 {[%clk 0:00:49]} 18.
Bd2 {[%clk 0:00:41.6]} 18... d4 {[%clk 0:00:48.5]} 19. Rad1 {[%clk 0:00:40.7]}
19... Rc8 {[%clk 0:00:34.6]} 20. c3 {[%clk 0:00:39.8]} 20... Rc6 {[%clk
0:00:34]} 21. Qc4 {[%clk 0:00:32.2]} 21... dxc3 {[%clk 0:00:29.5]} 22. Bxc3
{[%clk 0:00:30.9]} 22... Qe8 {[%clk 0:00:29.5]} 23. e6 {[%clk 0:00:25.4]} 23...
Qh5 {[%clk 0:00:27.1]} 24. Qe2 {[%clk 0:00:20.7]} 24... Qg6 {[%clk 0:00:25.5]}
25. Qe5 {[%clk 0:00:19.1]} 25... b5 {[%clk 0:00:22.2]} 26. Rd7 {[%clk
0:00:18.1]} 26... Bf6 {[%clk 0:00:19.7]} 27. e7 {[%clk 0:00:16.8]} 27... Re8
{[%clk 0:00:19]} 28. Qe2 {[%clk 0:00:15]} 28... Bxc3 {[%clk 0:00:18.8]} 29. bxc3
{[%clk 0:00:15.1]} 29... Rf6 {[%clk 0:00:15]} 30. Rd8 {[%clk 0:00:14.6]} 30...
Kg8 {[%clk 0:00:15.3]} 31. Rxe8+ {[%clk 0:00:14.5]} 31... Qxe8 {[%clk
0:00:16.2]} 32. Qe5 {[%clk 0:00:14.4]} 32... Rf7 {[%clk 0:00:15.6]} 33. Qxc5
{[%clk 0:00:14.1]} 33... a6 {[%clk 0:00:16]} 34. Qd6 {[%clk 0:00:14.4]} 34... g6
{[%clk 0:00:16.1]} 35. Qd8 {[%clk 0:00:14.7]} 35... Rxe7 {[%clk 0:00:14.2]} 36.
Qxe8+ {[%clk 0:00:14.6]} 36... Rxe8 {[%clk 0:00:14]} 37. Rxe8+ {[%clk
0:00:15.4]} 37... Kf7 {[%clk 0:00:14.8]} 38. Ra8 {[%clk 0:00:15.9]} 1-0

[Event "*** Titled Tuesday Blitz"]
[Site "Chess.com"]
[Date "2021.03.02"]
[Round "6"]
[White "pavelalexandru07"]
[Black "Lion-Al-Messi"]
[Result "0-1"]
[WhiteElo "2290"]
[BlackElo "2430"]
[TimeControl "180+1"]
[EndTime "11:07:02 PST"]
[Termination "Lion-Al-Messi won on time"]

1. e4 {[%clk 0:02:57.7]} 1... b6 {[%clk 0:02:59.1]} 2. d4 {[%clk 0:02:50.6]}
2... Bb7 {[%clk 0:02:59.1]} 3. Nc3 {[%clk 0:02:50.5]} 3... e6 {[%clk 0:02:59.2]}
4. Bd3 {[%clk 0:02:46.7]} 4... Bb4 {[%clk 0:02:58.8]} 5. Nf3 {[%clk 0:02:43.4]}
5... Nf6 {[%clk 0:02:58.6]} 6. Qe2 {[%clk 0:02:40.6]} 6... d5 {[%clk 0:02:58.4]}
7. e5 {[%clk 0:02:33.5]} 7... Ne4 {[%clk 0:02:57.7]} 8. Bd2 {[%clk 0:02:31.6]}
8... Nxd2 {[%clk 0:02:58]} 9. Nxd2 {[%clk 0:02:31.1]} 9... Be7 {[%clk
0:02:58.9]} 10. O-O {[%clk 0:02:29.5]} 10... c5 {[%clk 0:02:59]} 11. dxc5 {[%clk
0:02:23.7]} 11... bxc5 {[%clk 0:02:58.4]} 12. Qg4 {[%clk 0:02:20.2]} 12... O-O
{[%clk 0:02:57.3]} 13. Rad1 {[%clk 0:02:07.6]} 13... Nd7 {[%clk 0:02:56.9]} 14.
f4 {[%clk 0:02:06.2]} 14... c4 {[%clk 0:02:55.8]} 15. Be2 {[%clk 0:02:05.1]}
15... Qb6+ {[%clk 0:02:55.7]} 16. Kh1 {[%clk 0:02:05.1]} 16... Qxb2 {[%clk
0:02:55.9]} 17. Qh3 {[%clk 0:01:34.2]} 17... Qxc2 {[%clk 0:02:53.5]} 18. Nxc4
{[%clk 0:01:23.3]} 18... dxc4 {[%clk 0:02:47.3]} 19. Rxd7 {[%clk 0:01:22.1]}
19... Bb4 {[%clk 0:02:45.1]} 20. Rxb7 {[%clk 0:01:10.1]} 20... Bxc3 {[%clk
0:02:42.8]} 21. Bxc4 {[%clk 0:01:10.1]} 21... Rad8 {[%clk 0:02:36.8]} 22. Rbb1
{[%clk 0:01:01.3]} 22... Bxe5 {[%clk 0:02:34.3]} 23. Rbc1 {[%clk 0:00:50]} 23...
Qb2 {[%clk 0:02:22.4]} 24. fxe5 {[%clk 0:00:49.3]} 24... Qxe5 {[%clk 0:02:23.3]}
25. Rce1 {[%clk 0:00:46.6]} 25... Qc5 {[%clk 0:02:22.2]} 26. Be2 {[%clk
0:00:45.8]} 26... g6 {[%clk 0:02:21.7]} 27. Bf3 {[%clk 0:00:45.8]} 27... Rd2
{[%clk 0:02:21.1]} 28. a4 {[%clk 0:00:41.6]} 28... a5 {[%clk 0:02:19.9]} 29. Qg4
{[%clk 0:00:40.4]} 29... Rd4 {[%clk 0:02:19.2]} 30. Qg3 {[%clk 0:00:34.2]} 30...
Rxa4 {[%clk 0:02:15.8]} 31. Qf2 {[%clk 0:00:30.7]} 31... Qe7 {[%clk 0:02:11]}
32. Qc2 {[%clk 0:00:28.9]} 32... Rh4 {[%clk 0:02:05.2]} 33. Ra1 {[%clk
0:00:28.2]} 33... Qg5 {[%clk 0:01:38.6]} 34. Ra4 {[%clk 0:00:23.5]} 34... Rd8
{[%clk 0:01:33.6]} 35. Rxh4 {[%clk 0:00:19.9]} 35... Qxh4 {[%clk 0:01:34.5]} 36.
h3 {[%clk 0:00:14.4]} 36... a4 {[%clk 0:01:26.4]} 37. Ra1 {[%clk 0:00:13.4]}
37... Rd4 {[%clk 0:01:26.4]} 38. Qc8+ {[%clk 0:00:12.9]} 38... Kg7 {[%clk
0:01:26.1]} 39. Qc3 {[%clk 0:00:12.9]} 39... Qf6 {[%clk 0:01:25.4]} 40. Kh2
{[%clk 0:00:06.5]} 40... Qe5+ {[%clk 0:01:25.6]} 41. g3 {[%clk 0:00:06.3]} 41...
Qf6 {[%clk 0:01:16.8]} 42. Kg2 {[%clk 0:00:05.5]} 42... h5 {[%clk 0:01:14.3]}
43. Re1 {[%clk 0:00:05.2]} 43... h4 {[%clk 0:01:12.6]} 44. Qe3 {[%clk
0:00:03.8]} 44... hxg3 {[%clk 0:01:11]} 45. Kxg3 {[%clk 0:00:04.2]} 45... Qh4+
{[%clk 0:01:06.2]} 46. Kg2 {[%clk 0:00:04.4]} 46... Kh7 {[%clk 0:00:57]} 47. Rc1
{[%clk 0:00:04.2]} 47... Rb4 {[%clk 0:00:55.1]} 48. Rc7 {[%clk 0:00:02.7]} 48...
Rb2+ {[%clk 0:00:54.9]} 0-1